fUSD/lending_fUSD_20250228
["ID","MTS","AMOUNT","RATE_DAILY","PERIOD"]
[354855971,1740745433148,-150.0,0.0006391,120]
[354855972,1740745433175,-898.21,0.00063916,120]
[354855973,1740745433201,-1000.0,0.00063999,120]
[354855974,1740745433228,-500.0,0.00064,120]
[354855975,1740745433259,-95719.73404189,0.00064,120]
[354855976,1740745436204,-904280.26595811,0.00064,120]
[354855977,1740745436234,-1000000.0,0.00064,120]
[354855978,1740745436263,-1000000.0,0.00064,120]
[354855979,1740745436298,-1000000.0,0.00064,120]
[354855980,1740745436328,-1000000.0,0.00064,120]
[354855981,1740745436358,-95719.73404189,0.00064,120]
[354855982,1740745448738,-904280.26595811,0.00064,120]
[354855983,1740745448767,-1061.0,0.00064,120]
[354855984,1740745448796,-209.2808175,0.00064,120]
[354855985,1740745448824,-898.29923283,0.0006419,120]
[354855986,1740745448851,-151.0,0.00064329,120]
[354855987,1740745448877,-3045.74502,0.0006475,30]
[354855988,1740745448904,-1000.0,0.00064999,120]
[354855989,1740745448932,-100000.0,0.00065,64]
[354855990,1740745448962,-3024.89323496,0.00065,120]
[354855991,1740745448988,-358.5718125,0.00065,120]
[354855992,1740745449015,-2000.0,0.00065,120]
[354855993,1740745449046,-1000000.0,0.00065,120]
[354855994,1740745449073,-100000.0,0.00065,120]
[354855995,1740745449101,-18365.00268656,0.00065,30]
[354855996,1740745449130,-184.09,0.00065119,120]
[354855997,1740745449157,-151.0,0.00065315,120]
[354855998,1740745449184,-3343.33,0.00065334,120]
[354855999,1740745449210,-150.0,0.0006541,120]
[354856000,1740745449237,-2291.32,0.000655,120]
[354856001,1740745449264,-1000.0,0.00065569,120]
[354856002,1740745449291,-2347.0,0.00066,60]
[354856003,1740745449318,-150.0,0.0006633,120]
[354856004,1740745449344,-166.87,0.000665,120]
[354856005,1740745449372,-1037.00415,0.00066547,92]
[354856006,1740745449397,-200.0,0.0006657,90]
[354856007,1740745449423,-250.0,0.0006657,90]
[354856008,1740745449448,-1000.0,0.00066599,120]
[354856009,1740745449475,-100000.0,0.000666,67]
[354856010,1740745449503,-2753335.32708754,0.000666,30]
[354856011,1740745454367,-88888.0,0.000579,120]
[354856012,1740745454399,-4911112.0,0.000666,30]
[354856013,1740745457980,-5000000.0,0.000666,30]
[354856014,1740745461414,-7500.0,0.000578,120]
[354856015,1740745461446,-4992500.0,0.000666,30]
[354856016,1740745468761,-131424.18829878,0.000666,72]
[354856017,1740745468791,-4868575.81170122,0.000666,30]
[354856018,1740745488018,-250.0,0.00021,2]
[354856019,1740745488059,-300.0,0.00023,2]
[354856020,1740745488248,-350.0,0.00025,2]
[354856021,1740745509049,110000.0,0.00015,2]
[354856022,1740745509085,5555.0,0.00015,2]
[354856023,1740745520802,455.83754982,9e-05,2]
[354856061,1740745832205,-804.92353999,0.000149,2]
[354856062,1740745832263,-1073.23644724,0.000149,2]
[354856064,1740745832274,-1706.39976878,0.000149,2]
[354856091,1740745837988,-599.39640003,0.000149,2]
[354856160,1740745840028,-5135.20326,0.000149,2]
[354856161,1740745840037,-310.00763216,0.000149,2]
[354856162,1740745840047,-368.0,0.00014959,2]
[354856163,1740745840057,-631.93395798,0.00014999,5]
[354856164,1740745840067,-500.0,0.00014999,2]
[354856165,1740745840076,-268.68240777,0.00014999,2]
[354856166,1740745840086,-35138.89974339,0.00015,2]
[354856167,1740745840307,-332.16771512,0.00015,2]
[354856180,1740745843826,-2421.18049053,0.00015,2]
[354856183,1740745846110,-4037.05,0.00015,2]
[354856184,1740745846330,-295.32639901,0.00015,2]
[354856185,1740745846342,-11281.65272,0.00015,2]
[354856186,1740745846353,-1126.14310542,0.00015,2]
[354856187,1740745893334,28.0,0.00026357,120]
[354856188,1740745900053,-220.6,0.0001499,3]
[354856189,1740745900080,-300.0,0.00014999,2]
[354856190,1740745900106,-500.0,0.00014999,2]
[354856191,1740745900130,-491.48579337,0.00014999,2]
[354856192,1740745900158,-35288.77805308,0.00015,2]
[354856193,1740746072260,-593.14102793,0.000149,2]
[354856194,1740746072282,-7406.85897207,0.000149,2]
[354856197,1740746309286,162.735,0.000147,2]
[354856204,1740746570095,-248.24,0.00025334,120]
[354856205,1740746570125,-509.11,0.00025496,120]
[354856206,1740746570153,-1310.81,0.00028679,120]
[354856207,1740746570182,-509.11,0.00028683,120]
[354856208,1740746570214,-509.11,0.0003187,120]
[354856209,1740746570244,-509.11,0.00035057,120]
[354856210,1740746570276,-509.11,0.00038243,120]
[354856211,1740746570304,-168.36757832,0.00043562,120]
[354856212,1740746570331,-159.93,0.00043603,120]
[354856213,1740746570357,-151.0,0.00045,120]
[354856214,1740746570383,-151.0,0.00045,120]
[354856215,1740746570410,-151.0,0.00047151,120]
[354856216,1740746570436,-150.0,0.00048324,30]
[354856217,1740746570461,-150.0,0.00048324,30]
[354856218,1740746570486,-568.64952325,0.00048324,30]
[354856219,1740746570514,-3521.85856311,0.00048324,30]
[354856220,1740746570541,-151.0,0.00049288,120]
[354856221,1740746570569,-7617.46154993,0.0005,120]
[354856222,1740746570595,-201.4784909,0.0005,120]
[354856223,1740746570620,-5231.0,0.0005,30]
[354856224,1740746570646,-151.0,0.00051425,120]
[354856225,1740746570675,-216.64824938,0.00051881,46]
[354856226,1740746570701,-151.0,0.00052493,120]
[354856227,1740746570726,-278.52188848,0.00053,120]
[354856228,1740746570756,-151.0,0.00053562,120]
[354856229,1740746570783,-150.0,0.00053917,30]
[354856230,1740746570810,-150.0,0.00053917,30]
[354856231,1740746570839,-461.7257674,0.00053917,30]
[354856232,1740746570866,-2259.95089373,0.00053917,30]
[354856233,1740746570894,-965.46,0.00054041,30]
[354856234,1740746570921,-151.29,0.00054178,30]
[354856235,1740746570949,-163.1457546,0.00054794,120]
[354856236,1740746571151,-500.0,0.00054794,120]
[354856237,1740746571180,-500.0,0.00054794,120]
[354856238,1740746571208,-500.0,0.00054794,120]
[354856239,1740746571236,-500.0,0.00054794,120]
[354856240,1740746571262,-500.0,0.00054794,90]
[354856241,1740746571290,-500.0,0.00054794,90]
[354856242,1740746571315,-500.0,0.00054794,90]
[354856243,1740746571343,-500.0,0.00054794,90]
[354856244,1740746571373,-500.0,0.00054794,90]
[354856245,1740746571401,-500.0,0.00054794,90]
[354856246,1740746571430,-500.0,0.00054794,90]
[354856247,1740746571456,-500.0,0.00054794,90]
[354856248,1740746571484,-500.0,0.00054794,90]
[354856249,1740746571509,-500.0,0.00054794,90]
[354856250,1740746571534,-500.0,0.00054794,90]
[354856251,1740746571559,-391.17,0.00054794,90]
[354856252,1740746571584,-500.0,0.00054794,120]
[354856253,1740746571609,-645.83,0.00054794,120]
[354856254,1740746571634,-358.11,0.00054794,120]
[354856255,1740746571661,-215.45763809,0.00054794,120]
[354856256,1740746571687,-311.86922376,0.00054794,120]
[354856257,1740746571711,-500.0,0.00054794,120]
[354856258,1740746571735,-500.0,0.00054794,120]
[354856259,1740746571760,-500.0,0.00054794,120]
[354856260,1740746571784,-500.0,0.00054794,120]
[354856261,1740746571809,-500.0,0.00054794,120]
[354856262,1740746571835,-500.0,0.00054794,120]
[354856263,1740746571865,-1008.76,0.00054794,120]
[354856264,1740746571889,-500.0,0.00054794,120]
[354856265,1740746571914,-500.0,0.00054794,120]
[354856266,1740746571940,-500.0,0.00054794,120]
[354856267,1740746571964,-547.23,0.00054794,120]
[354856268,1740746571989,-2462.13,0.00054794,120]
[354856269,1740746572016,-500.0,0.00054794,120]
[354856270,1740746572042,-167.84288447,0.00054794,120]
[354856271,1740746572067,-204.70992364,0.0005485,120]
[354856272,1740746572095,-220.11,0.00054852,120]
[354856273,1740746572120,-650.0,0.00055,120]
[354856274,1740746572145,-173.05,0.00055068,120]
[354856275,1740746572171,-579.04,0.00055068,120]
[354856276,1740746572196,-500.0,0.00055068,120]
[354856277,1740746572223,-645.83,0.00055068,120]
[354856278,1740746572249,-500.0,0.00055068,120]
[354856279,1740746572277,-1008.76,0.00055068,120]
[354856280,1740746572304,-193.45,0.00055068,120]
[354856281,1740746572331,-500.0,0.00055068,120]
[354856282,1740746572357,-2462.13,0.00055068,120]
[354856283,1740746572384,-500.0,0.00055068,120]
[354856284,1740746572411,-3000.0,0.000553,90]
[354856285,1740746572436,-301.81688,0.00055342,120]
[354856286,1740746572462,-645.83,0.00055342,120]
[354856287,1740746572487,-251.5,0.00055342,120]
[354856288,1740746572513,-1008.76,0.00055342,120]
[354856289,1740746572538,-500.0,0.00055342,120]
[354856290,1740746572564,-2462.13,0.00055342,120]
[354856291,1740746572591,-500.0,0.00055342,120]
[354856292,1740746572617,-645.83,0.00055616,120]
[354856293,1740746572644,-1008.76,0.00055616,120]
[354856294,1740746572672,-500.0,0.00055616,120]
[354856295,1740746572698,-2462.13,0.00055616,120]
[354856296,1740746572724,-500.0,0.00055616,120]
[354856297,1740746572750,-151.0,0.00055699,120]
[354856298,1740746572777,-1180.9273598,0.00055846,120]
[354856299,1740746572803,-645.83,0.0005589,120]
[354856300,1740746572829,-1008.76,0.0005589,120]
[354856301,1740746572854,-500.0,0.0005589,120]
[354856302,1740746572879,-2462.13,0.0005589,120]
[354856303,1740746572906,-500.0,0.0005589,120]
[354856304,1740746572932,-645.83,0.00056164,120]
[354856305,1740746572958,-1008.76,0.00056164,120]
[354856306,1740746572984,-500.0,0.00056164,120]
[354856307,1740746573009,-2462.13,0.00056164,120]
[354856308,1740746573035,-500.0,0.00056164,120]
[354856309,1740746573060,-645.83,0.00056438,120]
[354856310,1740746573088,-1008.76,0.00056438,120]
[354856311,1740746573113,-500.0,0.00056438,120]
[354856312,1740746573138,-2462.13,0.00056438,120]
[354856313,1740746573164,-500.0,0.00056438,120]
[354856314,1740746573189,-1000.0,0.00056448,120]
[354856315,1740746573215,-645.83,0.00056712,120]
[354856316,1740746573242,-1008.76,0.00056712,120]
[354856317,1740746573271,-501.95600001,0.00056712,120]
[354856318,1740746573299,-2462.13,0.00056712,120]
[354856319,1740746573329,-500.0,0.00056712,120]
[354856320,1740746573356,-878.02163641,0.00056954,51]
[354856321,1740746573384,-645.83,0.00056986,120]
[354856322,1740746573411,-1008.76,0.00056986,120]
[354856323,1740746573437,-2462.13,0.00056986,120]
[354856324,1740746573464,-500.0,0.00056986,120]
[354856325,1740746573491,-500.0,0.00056999,120]
[354856326,1740746573518,-645.83,0.0005726,120]
[354856327,1740746573546,-1008.76,0.0005726,120]
[354856328,1740746573572,-2462.13,0.0005726,120]
[354856329,1740746573599,-500.0,0.0005726,120]
[354856330,1740746573627,-500.0,0.00057273,120]
[354856331,1740746573759,-251.80330862,0.000573,30]
[354856332,1740746573787,-645.83,0.00057534,120]
[354856333,1740746573812,-1008.76,0.00057534,120]
[354856334,1740746573839,-2462.13,0.00057534,120]
[354856335,1740746573868,-500.0,0.00057534,120]
[354856336,1740746573894,-500.0,0.00057547,120]
[354856337,1740746573920,-645.83,0.00057808,120]
[354856338,1740746573947,-1008.76,0.00057808,120]
[354856339,1740746573972,-2462.13,0.00057808,120]
[354856340,1740746573998,-500.0,0.00057808,120]
[354856341,1740746574024,-500.0,0.00057821,120]
[354856342,1740746574049,-151.0,0.00057836,120]
[354856343,1740746574074,-151.98197035,0.00057999,120]
[354856344,1740746574100,-645.83,0.00058082,120]
[354856345,1740746574127,-1008.76,0.00058082,120]
[354856346,1740746574153,-2462.13,0.00058082,120]
[354856347,1740746574179,-500.0,0.00058082,120]
[354856348,1740746574206,-500.0,0.00058095,120]
[354856349,1740746574232,-2077.0,0.000581,90]
[354856350,1740746574258,-645.83,0.00058356,120]
[354856351,1740746574284,-1008.76,0.00058356,120]
[354856352,1740746574310,-2462.13,0.00058356,120]
[354856353,1740746574336,-206.99108353,0.00058356,120]
[354856354,1740746574362,-500.0,0.00058369,120]
[354856355,1740746574388,-645.83,0.0005863,120]
[354856356,1740746574414,-1008.76,0.0005863,120]
[354856357,1740746574440,-2462.13,0.0005863,120]
[354856358,1740746574466,-500.0,0.00058643,120]
[354856359,1740746574492,-645.83,0.00058904,120]
[354856360,1740746574516,-1008.76,0.00058904,120]
[354856361,1740746574542,-2462.13,0.00058904,120]
[354856362,1740746574568,-500.0,0.00058917,120]
[354856363,1740746574594,-3861.82870204,0.00058987,120]
[354856364,1740746574620,-158.509538,0.0005904,120]
[354856365,1740746574650,-645.83,0.00059178,120]
[354856366,1740746574677,-1008.76,0.00059178,120]
[354856367,1740746574704,-2462.13,0.00059178,120]
[354856368,1740746574732,-500.0,0.00059191,120]
[354856369,1740746574760,-645.83,0.00059452,120]
[354856370,1740746574785,-1008.76,0.00059452,120]
[354856371,1740746574811,-2462.13,0.00059452,120]
[354856372,1740746574838,-500.0,0.00059465,120]
[354856373,1740746574865,-645.83,0.00059726,120]
[354856374,1740746574892,-1008.76,0.00059726,120]
[354856375,1740746574920,-2462.13,0.00059726,120]
[354856376,1740746574948,-500.0,0.00059739,120]
[354856377,1740746574974,-638.0,0.00059839,60]
[354856378,1740746575002,-151.0,0.00059973,120]
[354856379,1740746575029,-220.11,0.00059986,120]
[354856380,1740746575055,-645.83,0.00059999,120]
[354856381,1740746575083,-1008.76,0.00059999,120]
[354856382,1740746575109,-2462.13,0.00059999,120]
[354856383,1740746575136,-151.0,0.0006,120]
[354856384,1740746575162,-494.52123659,0.0006,120]
[354856385,1740746575189,-550.0,0.0006,120]
[354856386,1740746575215,-150.0,0.0006,120]
[354856387,1740746575243,-1000000.0,0.0006,120]
[354856388,1740746575270,-500.0,0.00060013,120]
[354856389,1740746575297,-645.83,0.00060273,120]
[354856390,1740746575322,-1008.76,0.00060273,120]
[354856391,1740746575348,-2462.13,0.00060273,120]
[354856392,1740746575375,-500.0,0.00060287,120]
[354856393,1740746575401,-638.0,0.00060456,60]
[354856394,1740746575427,-3532.32261775,0.00060546,30]
[354856395,1740746575453,-645.83,0.00060547,120]
[354856396,1740746575478,-1008.76,0.00060547,120]
[354856397,1740746575505,-2462.13,0.00060547,120]
[354856398,1740746575530,-500.0,0.00060561,120]
[354856399,1740746575555,-422.0,0.000607,101]
[354856400,1740746575582,-200.0,0.0006074,120]
[354856401,1740746575607,-2077.78731229,0.000608,90]
[354856402,1740746575634,-200.0,0.00060803,120]
[354856403,1740746575663,-645.83,0.00060821,120]
[354856404,1740746575688,-1008.76,0.00060821,120]
[354856405,1740746575715,-2462.13,0.00060821,120]
[354856406,1740746575741,-455.68354955,0.00060835,120]
[354856407,1740746575768,-166.50451807,0.000609,120]
[354856408,1740746575794,-166.50451805,0.000609,120]
[354856409,1740746575820,-166.50451805,0.000609,120]
[354856410,1740746575846,-150.0,0.00060932,120]
[354856411,1740746575873,-200.0,0.00060986,120]
[354856412,1740746575900,-1000000.0,0.00061,120]
[354856413,1740746575925,-638.0,0.00061073,60]
[354856414,1740746575951,-645.909999,0.00061095,120]
[354856415,1740746575976,-1008.81923283,0.00061095,120]
[354856416,1740746576001,-2462.28427114,0.00061095,120]
[354856417,1740746576027,-153.0,0.00061397,120]
[354856418,1740746576053,-153.0,0.00061397,120]
[354856419,1740746576079,-153.0,0.00061397,120]
[354856420,1740746576110,-153.0,0.00061397,120]
[354856421,1740746576136,-153.0,0.00061397,120]
[354856422,1740746576162,-200.0,0.0006165,120]
[354856423,1740746576187,-638.0,0.0006169,60]
[354856424,1740746576212,-207.95667093,0.0006169,60]
[354856425,1740746576338,-1810.5864928,0.0006193,120]
[354856426,1740746576367,-1000000.0,0.00062,120]
[354856427,1740746576392,-9688.37331569,0.00062,120]
[354856428,1740746576418,-151.0,0.0006211,120]
[354856429,1740746576447,-638.0,0.00062307,60]
[354856430,1740746576473,-162.735,0.0006235,120]
[354856431,1740746576500,-216.64824938,0.00062496,89]
[354856432,1740746576527,-638.0,0.00062924,60]
[354856433,1740746576554,-1016.29990605,0.00063,120]
[354856434,1740746576581,-1000000.0,0.00063,120]
[354856435,1740746576607,-797834.42418401,0.00063,120]
[354856436,1740746581131,-1000000.0,0.000625,120]
[354856437,1740746581160,-250.1576645,0.00062764,120]
[354856438,1740746581190,-202165.57581599,0.00063,120]
[354856439,1740746581220,-805.99,0.000635,120]
[354856440,1740746581248,-1000000.0,0.000635,120]
[354856441,1740746581278,-1000.0,0.00063504,120]
[354856442,1740746581304,-638.0,0.00063541,60]
[354856443,1740746581331,-209.2808175,0.00064,120]
[354856444,1740746581357,-1000000.0,0.00064,120]
[354856445,1740746581383,-2009.46,0.00064,120]
[354856446,1740746581410,-151.0,0.00064247,120]
[354856447,1740746581436,-501.42343041,0.00064415,60]
[354856448,1740746581461,-3024.89554283,0.00065,120]
[354856449,1740746581488,-450.0,0.00065,120]
[354856450,1740746581517,-220.11,0.00065119,120]
[354856451,1740746581544,-150.0,0.00065354,30]
[354856452,1740746581570,-2291.32,0.000655,120]
[354856454,1740746581599,-150.0,0.00065816,60]
[354856456,1740746581627,-150.0,0.00065855,60]
[354856457,1740746581658,-150.0,0.0006587,60]
[354856458,1740746581686,-150.0,0.00065887,60]
[354856460,1740746581714,-150.0,0.00065912,60]
[354856461,1740746581740,-150.0,0.00065914,60]
[354856462,1740746581769,-150.0,0.00065925,60]
[354856463,1740746581795,-150.0,0.00065967,60]
[354856464,1740746581820,-2350.52953288,0.00066,60]
[354856465,1740746581848,-150.0,0.00066,60]
[354856466,1740746581873,-150.0,0.00066013,60]
[354856467,1740746581899,-150.0,0.00066032,60]
[354856468,1740746581924,-150.0,0.00066032,60]
[354856469,1740746581950,-150.0,0.00066033,60]
[354856470,1740746581976,-150.0,0.00066046,60]
[354856471,1740746582002,-150.0,0.00066048,60]
[354856472,1740746582031,-150.0,0.0006607,60]
[354856473,1740746582057,-150.0,0.00066072,60]
[354856474,1740746582085,-150.0,0.00066073,60]
[354856475,1740746582112,-300.0,0.00066084,60]
[354856476,1740746582136,-152.45983592,0.00066086,60]
[354856477,1740746582164,-150.0,0.00066091,60]
[354856478,1740746582192,-299.3248086,0.0006611,60]
[354856479,1740746582219,-150.0,0.00066116,60]
[354856480,1740746582246,-150.0,0.00066122,60]
[354856481,1740746582274,-201.27256819,0.00066124,60]
[354856482,1740746582300,-150.0,0.00066126,60]
[354856483,1740746582327,-150.0,0.00066133,60]
[354856484,1740746582353,-150.0,0.00066136,60]
[354856485,1740746582381,-150.0,0.00066142,60]
[354856486,1740746582408,-150.0,0.00066154,60]
[354856487,1740746582435,-150.0,0.00066155,60]
[354856488,1740746582462,-150.0,0.00066159,60]
[354856489,1740746582489,-150.0,0.00066176,60]
[354856490,1740746582516,-150.0,0.00066227,60]
[354856491,1740746582542,-150.0,0.00066245,60]
[354856492,1740746582569,-150.0,0.00066245,60]
[354856493,1740746582596,-150.0,0.00066259,60]
[354856494,1740746582623,-150.0,0.00066266,60]
[354856495,1740746582651,-150.0,0.0006627,60]
[354856496,1740746582676,-528.0,0.00066274,120]
[354856497,1740746582703,-150.0,0.0006629,60]
[354856498,1740746582731,-150.0,0.00066298,60]
[354856499,1740746582758,-150.0,0.00066328,60]
[354856500,1740746582786,-300.0,0.00066329,60]
[354856501,1740746582812,-150.0,0.00066339,60]
[354856502,1740746582839,-150.0,0.00066339,60]
[354856503,1740746582865,-150.0,0.00066344,60]
[354856504,1740746582892,-150.0,0.00066351,60]
[354856505,1740746582918,-150.0,0.00066355,60]
[354856506,1740746582944,-150.0,0.00066356,60]
[354856507,1740746582971,-150.0,0.00066364,60]
[354856508,1740746582997,-150.0,0.00066366,60]
[354856509,1740746583023,-150.0,0.00066373,60]
[354856510,1740746583050,-150.0,0.00066376,60]
[354856511,1740746583078,-150.0,0.00066376,60]
[354856512,1740746583106,-150.0,0.00066383,60]
[354856513,1740746583132,-151.0,0.00066384,120]
[354856514,1740746583161,-150.0,0.00066389,60]
[354856515,1740746583319,-150.0,0.00066392,60]
[354856516,1740746583349,-4506.74838437,0.000664,120]
[354856517,1740746583379,-150.0,0.00066427,60]
[354856518,1740746583409,-150.0,0.00066432,60]
[354856519,1740746583440,-150.0,0.00066437,60]
[354856520,1740746583470,-150.0,0.00066442,60]
[354856521,1740746583499,-150.0,0.00066443,60]
[354856522,1740746583530,-150.0,0.00066444,60]
[354856523,1740746583560,-150.0,0.00066446,60]
[354856524,1740746583589,-150.0,0.00066446,60]
[354856525,1740746583620,-150.0,0.00066447,60]
[354856526,1740746583650,-150.0,0.00066453,60]
[354856527,1740746583683,-150.0,0.00066454,60]
[354856528,1740746583713,-150.0,0.00066459,60]
[354856529,1740746583744,-150.0,0.00066478,60]
[354856530,1740746583773,-150.0,0.00066482,60]
[354856531,1740746583801,-150.0,0.00066485,60]
[354856532,1740746583829,-1000.0,0.0006649,60]
[354856533,1740746583857,-150.0,0.00066491,60]
[354856534,1740746583884,-185.68815458,0.000665,47]
[354856535,1740746583914,-150.0,0.00066505,60]
[354856536,1740746583940,-381.04532372,0.0006651,120]
[354856537,1740746583968,-150.0,0.00066511,60]
[354856538,1740746583996,-150.0,0.00066512,60]
[354856539,1740746584024,-150.0,0.0006653,60]
[354856540,1740746584053,-150.0,0.0006653,60]
[354856541,1740746584082,-150.0,0.00066532,60]
[354856542,1740746584111,-150.0,0.0006654,60]
[354856543,1740746584141,-150.0,0.00066541,60]
[354856544,1740746584171,-150.0,0.00066553,60]
[354856545,1740746584201,-152.92839495,0.00066553,60]
[354856546,1740746584232,-150.0,0.00066557,60]
[354856547,1740746584262,-150.0,0.00066571,60]
[354856548,1740746584295,-150.0,0.00066572,60]
[354856549,1740746584325,-150.0,0.00066578,60]
[354856550,1740746584355,-150.0,0.0006658,60]
[354856551,1740746584384,-150.0,0.00066597,60]
[354856552,1740746584414,-150.0,0.00066599,60]
[354856553,1740746584443,-1037.00414,0.00066599,120]
[354856554,1740746584472,-100000.0,0.000666,67]
[354856555,1740746584500,-704.83076541,0.000666,120]
[354856556,1740746584531,-1661281.95482015,0.000666,30]
[354856557,1740746594192,-410.69729894,0.0005767,30]
[354856558,1740746594222,-400.0,0.0006087,60]
[354856559,1740746594249,-490.85816444,0.0006137,60]
[354856560,1740746594278,-400.0,0.0006137,60]
[354856561,1740746594311,-785210.06,0.00062,120]
[354856562,1740746594338,-300.0,0.0006367,60]
[354856563,1740746594364,-400.0,0.0006367,60]
[354856564,1740746594392,-300.0,0.0006397,60]
[354856565,1740746594419,-400.0,0.0006397,60]
[354856566,1740746594451,-300.0,0.0006657,90]
[354856567,1740746594479,-400.0,0.0006657,90]
[354856568,1740746594507,-4210988.38453662,0.000666,30]
[354856569,1740746598190,-3200897.2437564,0.000666,30]
[354856570,1740746598220,-1061.0,0.000666,120]
[354856571,1740746598248,-200.0,0.000666,30]
[354856572,1740746598275,-151.0,0.000666,120]
[354856573,1740746598303,-151.0,0.000666,120]
[354856574,1740746598331,-151.0,0.000666,120]
[354856575,1740746598358,-151.0,0.000666,120]
[354856576,1740746598385,-192.586064,0.000666,120]
[354856577,1740746598412,-151.985265,0.000666,120]
[354856578,1740746598439,-152.344725,0.000666,120]
[354856579,1740746598465,-151.0,0.000666,120]
[354856580,1740746598492,-151.0,0.000666,120]
[354856581,1740746598518,-151.0,0.000666,120]
[354856582,1740746598547,-151.0,0.000666,120]
[354856583,1740746598574,-200.0,0.000666,30]
[354856584,1740746598601,-151.0,0.000666,120]
[354856585,1740746598627,-151.0,0.000666,120]
[354856586,1740746598654,-151.0,0.000666,120]
[354856587,1740746598684,-151.0,0.000666,120]
[354856588,1740746598711,-151.631128,0.000666,120]
[354856589,1740746598738,-151.0,0.000666,30]
[354856590,1740746598763,-151.0,0.000666,120]
[354856591,1740746598789,-151.0,0.000666,120]
[354856592,1740746598816,-1189.422564,0.000666,120]
[354856593,1740746598842,-1189.422564,0.000666,120]
[354856594,1740746598869,-1037.00414,0.0006685,120]
[354856595,1740746598896,-381.04532372,0.00066877,120]
[354856596,1740746598926,-20320.64649899,0.000669,120]
[354856597,1740746599073,-7440.99942881,0.00067,30]
[354856598,1740746599101,-10000.0,0.00067,30]
[354856599,1740746599130,-381.04532374,0.00067157,120]
[354856600,1740746599158,-151.0,0.00067507,120]
[354856601,1740746599186,-1372.56786255,0.00068,120]
[354856602,1740746599214,-2567.8095,0.00068,120]
[354856603,1740746599242,-151.73472217,0.000681,120]
[354856604,1740746599269,-1037.00415,0.000681,120]
[354856605,1740746599300,-159.93,0.00068233,120]
[354856606,1740746599327,-3343.33,0.00068334,120]
[354856607,1740746599355,-300.0,0.000684,120]
[354856608,1740746599383,-151.0,0.00068521,120]
[354856609,1740746599409,-89891.28953722,0.00068534,120]
[354856610,1740746599436,-3045.74553919,0.0006895,30]
[354856611,1740746599462,-4000.0,0.0006896,40]
[354856612,1740746599489,-1037.00414,0.0006935,120]
[354856613,1740746599516,-1180.9273598,0.0006956,120]
[354856614,1740746599542,-12452.16900742,0.000699,120]
[354856615,1740746599568,-350.0,0.0007,120]
[354856616,1740746599594,-300.0,0.0007,120]
[354856617,1740746599619,-281.59354092,0.0007,120]
[354856618,1740746599645,-19244.92223614,0.0007,120]
[354856619,1740746599674,-150.0,0.0007,120]
[354856620,1740746599700,-269.40456716,0.0007,120]
[354856621,1740746599726,-50000.0,0.0007,30]
[354856622,1740746599753,-2000.0,0.0007,120]
[354856623,1740746599779,-220.11,0.00070252,120]
[354856624,1740746599808,-1000.0,0.0007056,120]
[354856625,1740746599836,-1037.00415,0.000706,120]
[354856626,1740746599861,-151.0,0.00070658,120]
[354856627,1740746599888,-500.0,0.00071,120]